fUSD/lending_fUSD_20250818
["ID","MTS","AMOUNT","RATE_DAILY","PERIOD"]
[380086085,1755532232009,-2147.66,9.941e-05,2]
[380086086,1755532232019,-2504.33,9.95e-05,2]
[380086087,1755532232028,-250.0,9.958e-05,2]
[380086088,1755532232038,-300.0,9.982e-05,2]
[380086089,1755532232047,-300.0,9.982e-05,2]
[380086090,1755532232058,-1200.0,9.982e-05,2]
[380086091,1755532232067,-2297.81,9.983e-05,2]
[380086092,1755532232077,-1476.84,9.991e-05,2]
[380086093,1755532232087,-798.63,0.00010674,2]
[380086094,1755532232096,-1360.21,0.00010674,2]
[380086095,1755532232106,-277.35679052,0.00010774,2]
[380086096,1755532232116,-1604.71833581,0.0001078,2]
[380086097,1755532232125,-160.0,0.00010823,2]
[380086098,1755532232135,-212.00699823,0.00010824,2]
[380086099,1755532232145,-843.78711038,0.00010846,2]
[380086100,1755532232155,-250.0,0.00010853,2]
[380086101,1755532232165,-1658.69933328,0.000109,2]
[380086102,1755532232175,-1000.0,0.000109,2]
[380086103,1755532232184,-326.51522996,0.000109,2]
[380086104,1755532232194,-2500.0,0.000109,2]
[380086105,1755532232204,-150.0,0.00010901,2]
[380086106,1755532232214,-500.0,0.00010902,2]
[380086107,1755532232224,-500.0,0.00010902,2]
[380086108,1755532232235,-500.0,0.00010902,2]
[380086109,1755532232245,-500.0,0.00010902,2]
[380086110,1755532232255,-500.0,0.00010902,2]
[380086111,1755532232264,-500.0,0.00010902,2]
[380086112,1755532232274,-500.0,0.00010902,2]
[380086113,1755532232283,-500.0,0.00010902,2]
[380086114,1755532232293,-500.0,0.00010902,2]
[380086115,1755532232302,-500.0,0.00010902,2]
[380086123,1755532232743,-500.0,0.00010902,2]
[380086124,1755532232774,-500.0,0.00010902,2]
[380086125,1755532232784,-500.0,0.00010902,2]
[380086126,1755532232793,-500.0,0.00010902,2]
[380086127,1755532232803,-500.0,0.00010902,2]
[380086128,1755532232812,-500.0,0.00010902,2]
[380086129,1755532232822,-500.0,0.00010902,2]
[380086130,1755532232831,-500.0,0.00010902,2]
[380086131,1755532232841,-500.0,0.00010902,2]
[380086132,1755532232850,-500.0,0.00010902,2]
[380086133,1755532232860,-500.0,0.00010902,2]
[380086135,1755532232869,-500.0,0.00010902,2]
[380086137,1755532232879,-500.0,0.00010902,2]
[380086139,1755532232888,-500.0,0.00010902,2]
[380086141,1755532232898,-500.0,0.00010902,2]
[380086143,1755532232907,-500.0,0.00010902,2]
[380086146,1755532232917,-500.0,0.00010902,2]
[380086148,1755532232926,-500.0,0.00010902,2]
[380086150,1755532232935,-500.0,0.00010902,2]
[380086152,1755532232945,-500.0,0.00010902,2]
[380086154,1755532232954,-500.0,0.00010902,2]
[380086156,1755532232964,-500.0,0.00010902,2]
[380086158,1755532232973,-500.0,0.00010902,2]
[380086160,1755532232982,-500.0,0.00010902,2]
[380086162,1755532232994,-500.0,0.00010902,2]
[380086163,1755532233003,-500.0,0.00010902,2]
[380086166,1755532233014,-500.0,0.00010902,2]
[380086168,1755532233024,-500.0,0.00010902,2]
[380086170,1755532233035,-500.0,0.00010902,2]
[380086172,1755532233046,-500.0,0.00010902,2]
[380086174,1755532233056,-500.0,0.00010902,2]
[380086176,1755532233067,-500.0,0.00010902,2]
[380086177,1755532233077,-490.9820302,0.00010902,2]
[380086178,1755532233087,-160.0,0.00010952,2]
[380086179,1755532233099,-151.0,0.00010952,2]
[380086180,1755532233109,-721.12765535,0.00010952,2]
[380086181,1755532233120,-151.0,0.00010952,2]
[380086182,1755532233131,-300.0,0.00010952,2]
[380086183,1755532233142,-500.0,0.00010952,2]
[380086184,1755532233153,-151.0,0.00010952,2]
[380086185,1755532233165,-200.0,0.00010952,2]
[380086186,1755532233176,-500.0,0.00010952,2]
[380086187,1755532233186,-500.0,0.00010952,2]
[380086188,1755532233197,-500.0,0.00010952,2]
[380086189,1755532233207,-2000.0,0.00010959,2]
[380086190,1755532233217,-2000.0,0.00010959,2]
[380086191,1755532233227,-2000.0,0.00010959,2]
[380086192,1755532233240,-2000.0,0.00010959,2]
[380086193,1755532233249,-150.0,0.00010959,2]
[380086194,1755532233261,-1000.0,0.0001097,2]
[380086195,1755532233271,-458.40919931,0.00010972,2]
[380086196,1755532233282,-196.56278813,0.00010973,2]
[380086197,1755532233292,-500.0,0.00010973,2]
[380086198,1755532233301,-500.0,0.00010973,2]
[380086199,1755532233312,-500.0,0.00010973,2]
[380086200,1755532233322,-500.0,0.00010973,2]
[380086201,1755532233332,-500.0,0.00010973,2]
[380086202,1755532233342,-500.0,0.00010973,2]
[380086203,1755532233352,-500.0,0.00010973,2]
[380086204,1755532233362,-500.0,0.00010973,2]
[380086205,1755532233372,-500.0,0.00010973,2]
[380086206,1755532233383,-502.72473506,0.00010973,2]
[380086207,1755532233395,-649.24775804,0.00010973,2]
[380086208,1755532233414,-500.0,0.00010973,2]
[380086209,1755532233442,-500.0,0.00010973,2]
[380086210,1755532233452,-500.0,0.00010973,2]
[380086211,1755532233463,-300.34645665,0.00010973,2]
[380086212,1755532233475,-300.07224879,0.00010973,2]
[380086213,1755532233485,-500.0,0.00010973,2]
[380086214,1755532233495,-500.0,0.00010973,2]
[380086215,1755532233504,-500.0,0.00010973,2]
[380086216,1755532233514,-500.0,0.00010973,2]
[380086217,1755532233527,-500.0,0.00010973,2]
[380086218,1755532233538,-500.0,0.00010973,2]
[380086219,1755532233548,-500.0,0.00010973,2]
[380086220,1755532233558,-454.43916054,0.00010973,2]
[380086221,1755532233568,-500.0,0.00010973,2]
[380086222,1755532233578,-500.0,0.00010973,2]
[380086223,1755532233588,-500.0,0.00010973,2]
[380086224,1755532233598,-486.04363168,0.00010973,2]
[380086225,1755532233608,-500.0,0.00010973,2]
[380086226,1755532233619,-500.0,0.00010973,2]
[380086227,1755532233629,-500.0,0.00010973,2]
[380086228,1755532233639,-500.0,0.00010973,2]
[380086229,1755532233649,-500.0,0.00010973,2]
[380086230,1755532233660,-500.0,0.00010973,2]
[380086231,1755532233670,-500.0,0.00010973,2]
[380086232,1755532233679,-500.0,0.00010973,2]
[380086233,1755532233689,-420.0,0.0001098,2]
[380086234,1755532233700,-1680.0,0.0001098,2]
[380086235,1755532233710,-239.6278969,0.0001099,2]
[380086236,1755532233720,-178.1415206,0.0001099,2]
[380086237,1755532233732,-239.6278969,0.0001099,2]
[380086238,1755532233744,-239.6278969,0.0001099,2]
[380086239,1755532233754,-2731.29379959,0.00010993,2]
[380086240,1755532233764,-155.0,0.00010999,2]
[380086241,1755532233775,-2000.0,0.00010999,2]
[380086242,1755532233785,-800.0,0.00010999,2]
[380086243,1755532233795,-846.74,0.00010999,2]
[380086244,1755532233805,-2000.0,0.00010999,2]
[380086245,1755532233815,-1829.0,0.00011,2]
[380086246,1755532233825,-12774.76485861,0.00011,2]
[380086247,1755532233835,-125465.10671108,0.00011,2]
[380086248,1755532233877,-7077.79848255,0.00011,2]
[380086249,1755532233889,-10763.4168606,0.00011,2]
[380086250,1755532233940,-4141.3456,0.00011,2]
[380086251,1755532233952,-6769.5910241,0.00011,2]
[380086252,1755532233964,-12926.13355409,0.00011,2]
[380086253,1755532233977,-11599.0,0.00011,2]
[380086256,1755532238055,-194.40734083,9.796e-05,2]
[380086257,1755532238065,-424.83743779,0.00011,2]
[380086258,1755532238121,-3279.550584,0.00011,2]
[380086259,1755532238164,-9070.37683682,0.00011,2]
[380086260,1755532238174,-1546138.51764376,0.00011,2]
[380086261,1755532238184,-6003085.10268736,0.00011,2]
[380086262,1755532238194,-151.0,0.00011,2]
[380086263,1755532238203,-378648.05,0.00011,2]
[380086264,1755532238212,-2007.6,0.00011,2]
[380086265,1755532238222,-21432.28,0.00011,2]
[380086266,1755532238231,-250.0,0.00011,2]
[380086267,1755532238243,-250.0,0.00011,2]
[380086268,1755532238252,-250.0,0.00011,2]
[380086269,1755532238263,-250.0,0.00011,2]
[380086270,1755532238273,-250.0,0.00011,2]
[380086271,1755532238283,-250.0,0.00011,2]
[380086272,1755532238292,-250.0,0.00011,2]
[380086273,1755532238302,-250.0,0.00011,2]
[380086274,1755532238312,-250.0,0.00011,2]
[380086275,1755532238321,-250.0,0.00011,2]
[380086276,1755532238332,-250.0,0.00011,2]
[380086277,1755532238341,-250.0,0.00011,2]
[380086278,1755532238350,-250.0,0.00011,2]
[380086279,1755532238360,-250.0,0.00011,2]
[380086280,1755532238369,-250.0,0.00011,2]
[380086281,1755532238379,-250.0,0.00011,2]
[380086282,1755532238388,-250.0,0.00011,2]
[380086283,1755532238398,-250.0,0.00011,2]
[380086285,1755532238408,-250.0,0.00011,2]
[380086286,1755532238418,-250.0,0.00011,2]
[380086288,1755532238429,-250.0,0.00011,2]
[380086290,1755532238441,-250.0,0.00011,2]
[380086292,1755532238451,-250.0,0.00011,2]
[380086294,1755532238460,-250.0,0.00011,2]
[380086296,1755532238471,-250.0,0.00011,2]
[380086298,1755532238480,-250.0,0.00011,2]
[380086300,1755532238491,-250.0,0.00011,2]
[380086302,1755532238500,-250.0,0.00011,2]
[380086304,1755532238510,-250.0,0.00011,2]
[380086306,1755532238520,-250.0,0.00011,2]
[380086308,1755532238530,-250.0,0.00011,2]
[380086310,1755532238540,-250.0,0.00011,2]
[380086312,1755532238550,-250.0,0.00011,2]
[380086314,1755532238559,-250.0,0.00011,2]
[380086316,1755532238569,-250.0,0.00011,2]
[380086318,1755532238579,-250.0,0.00011,2]
[380086320,1755532238588,-398.5,0.00011,2]
[380086322,1755532238597,-151.0,0.00011,2]
[380086324,1755532238608,-151.0,0.00011,2]
[380086326,1755532238618,-151.0,0.00011,2]
[380086328,1755532238628,-151.0,0.00011,2]
[380086330,1755532238637,-151.0,0.00011,2]
[380086332,1755532238647,-151.0,0.00011,2]
[380086334,1755532238657,-151.0,0.00011,2]
[380086336,1755532238667,-151.0,0.00011,2]
[380086338,1755532238676,-151.0,0.00011,2]
[380086340,1755532238686,-151.0,0.00011,2]
[380086342,1755532238696,-151.0,0.00011,2]
[380086345,1755532238705,-151.0,0.00011,2]
[380086347,1755532238715,-151.0,0.00011,2]
[380086348,1755532238724,-166.8683779,0.00011,2]
[380086349,1755532238733,-118771.09995327,0.00011,2]
[380086350,1755532238749,-251613.76721786,0.00011,2]
[380086351,1755532238781,-514.06914122,0.00011,2]
[380086461,1755532239798,-4647.4,0.00011,2]
[380086480,1755532239991,-477.42149995,0.00011,2]
[380086482,1755532240003,-12617.929805,0.00011,2]
[380086486,1755532240034,-1534.77863531,0.00011,2]
[380086499,1755532240154,-824.31971902,0.00011,2]
[380086501,1755532240166,-699.72121019,0.00011,2]
[380086503,1755532240177,-1263.45825904,0.00011,2]
[380086522,1755532240346,-811.93,0.00011,2]
[380086799,1755532243061,-1158.2,0.00011,2]
[380086807,1755532243174,-46619.46624875,0.00011,2]
[380086809,1755532243186,-1811.03383815,0.00011,2]
[380087076,1755532246076,-1401.41736209,0.00011,2]
[380087078,1755532246088,-4951.81284524,0.00011,2]
[380087089,1755532246187,-22785.41965797,0.00011,2]
[380087126,1755532286933,341.74,0.000221,120]
[380087127,1755532305975,-1181.0,0.00010899,2]
[380087128,1755532305998,-567.06265462,0.000109,2]
[380087129,1755532306021,-207.93734538,0.000109,2]
[380087132,1755532439731,170.0,0.00010103,7]
[380087154,1755533432153,-200.0,9.879e-05,2]
[380087155,1755533432163,-2959.35,9.894e-05,2]
[380087156,1755533432174,-1000.0,9.905e-05,2]
[380087157,1755533432183,-218.14309723,9.905e-05,2]
[380087158,1755533432193,-181.1,9.995e-05,2]
[380087159,1755533432203,-410807.00613533,0.0001,2]
[380087160,1755533432279,-3575.572,0.0001,2]
[380087161,1755533432292,-43636.0443707,0.0001,2]
[380087165,1755533432511,-10032.02669624,0.0001,2]
[380087217,1755533438999,-300574.72038373,0.0001,2]
[380087218,1755533439008,-424.9707281,0.0001,2]
[380087219,1755533439018,-167.72,0.00010142,2]
[380087220,1755533439027,-341.57,0.00010225,2]
[380087221,1755533439037,-438.43,0.00010237,2]
[380087222,1755533439046,-167.73,0.00010241,2]
[380087223,1755533439057,-218.14309721,0.00010302,2]
[380087224,1755533439068,-150.0,0.00010399,2]
[380087225,1755533439078,-1200.0,0.00010399,2]
[380087226,1755533439087,-300.0,0.00010399,2]
[380087227,1755533439096,-798.63,0.000104,2]
[380087228,1755533439107,-150.99,0.000104,2]
[380087229,1755533439116,-148116.56,0.000104,2]
[380087230,1755533439126,-769.81,0.000104,2]
[380087231,1755533439135,-6350.45,0.000104,2]
[380087232,1755533439155,-9999.99,0.000104,2]
[380087233,1755533439166,-1499.48,0.000104,2]
[380087234,1755533439176,-8130.33,0.00010475,2]
[380087235,1755533439186,-8990.31,0.00010475,2]
[380087236,1755533439196,-4034.85765135,0.00010632,2]
[380087237,1755533439206,-167.73,0.00010664,2]
[380087238,1755533439216,-643.0,0.00010779,2]
[380087239,1755533439226,-942.44873499,0.0001078,2]
[380087240,1755533439235,-277.35679052,0.00010794,2]
[380087241,1755533439245,-218.14309721,0.00010798,2]
[380087242,1755533439255,-2984.0861,0.00010798,2]
[380087243,1755533439266,-230.9334,0.00010798,2]
[380087244,1755533439276,-275.6687,0.00010798,2]
[380087245,1755533439286,-3762.2645,0.00010798,2]
[380087246,1755533439296,-1000.0,0.000108,2]
[380087247,1755533439307,-2292.0626,0.000108,2]
[380087248,1755533439317,-595.15839326,0.000108,2]
[380087249,1755533439327,-843.78711038,0.0001087,2]
[380087250,1755533439338,-721.12765535,0.00010891,2]
[380087251,1755533439348,-151.0,0.00010891,2]
[380087252,1755533439358,-151.0,0.00010891,2]
[380087253,1755533439368,-160.0,0.00010891,2]
[380087254,1755533439379,-407.45897902,0.00010891,2]
[380087255,1755533439389,-151.0,0.00010891,2]
[380087256,1755533439399,-151.0,0.00010891,2]
[380087257,1755533439409,-200.0,0.00010891,2]
[380087258,1755533439419,-151.0,0.00010891,2]
[380087259,1755533439429,-151.0,0.00010891,2]
[380087260,1755533439439,-500.0,0.00010891,2]
[380087261,1755533439449,-500.0,0.00010891,2]
[380087262,1755533439459,-300.0,0.00010891,2]
[380087263,1755533439469,-500.0,0.00010891,2]
[380087264,1755533439479,-500.0,0.00010891,2]
[380087265,1755533439488,-500.0,0.00010891,2]
[380087266,1755533439499,-212.00699823,0.000109,2]
[380087267,1755533439508,-160.0,0.000109,2]
[380087268,1755533439518,-458.40919931,0.000109,2]
[380087269,1755533439528,-3208.24571502,0.000109,2]
[380087270,1755533439538,-26855.1887,0.000109,2]
[380087271,1755533439547,-84581.1334,0.000109,2]
[380087272,1755533439557,-1500.0,0.000109,2]
[380087273,1755533439567,-1000.0,0.000109,2]
[380087274,1755533439577,-500.0,0.000109,2]
[380087275,1755533439587,-159.1284671,0.000109,2]
[380087276,1755533439598,-331.86,0.000109,2]
[380087277,1755533439607,-266.67096416,0.000109,2]
[380087278,1755533439618,-166.45,0.00010926,2]
[380087279,1755533439628,-267.1,0.00010952,2]
[380087280,1755533439638,-500.0,0.00010959,2]
[380087281,1755533439648,-500.0,0.00010959,2]
[380087282,1755533439657,-200.0,0.00010959,2]
[380087283,1755533439667,-14064.0,0.00010959,2]
[380087284,1755533439677,-150.0,0.00010959,2]
[380087285,1755533439686,-150.0,0.00010959,2]
[380087286,1755533439696,-224.38,0.00010959,2]
[380087287,1755533439705,-1000.0,0.0001097,2]
[380087288,1755533439715,-500.0,0.00010973,2]
[380087289,1755533439725,-500.24724442,0.00010973,2]
[380087290,1755533439734,-500.12760307,0.00010973,2]
[380087291,1755533439744,-500.0,0.00010973,2]
[380087292,1755533439753,-500.0,0.00010973,2]
[380087293,1755533439763,-500.0,0.00010973,2]
[380087294,1755533439774,-500.0,0.00010973,2]
[380087295,1755533439786,-500.0,0.00010973,2]
[380087296,1755533439796,-160.0604348,0.00010973,2]
[380087297,1755533439807,-500.0,0.00010973,2]
[380087298,1755533439816,-500.0,0.00010973,2]
[380087299,1755533439827,-500.0,0.00010973,2]
[380087300,1755533439836,-500.0,0.00010973,2]
[380087301,1755533439846,-500.0,0.00010973,2]
[380087302,1755533439856,-500.0,0.00010973,2]
[380087303,1755533439867,-500.0,0.00010973,2]
[380087304,1755533439877,-500.0,0.00010973,2]
[380087305,1755533439887,-170.37813497,0.00010973,2]
[380087306,1755533439897,-173.13204744,0.00010973,2]
[380087307,1755533439906,-159.63897359,0.00010973,2]
[380087308,1755533439916,-219.86771002,0.00010973,2]
[380087309,1755533439926,-500.0,0.00010973,2]
[380087310,1755533439936,-500.0,0.00010973,2]
[380087311,1755533439946,-161.92554636,0.00010973,2]
[380087312,1755533439956,-500.0,0.00010973,2]
[380087313,1755533439966,-500.0,0.00010973,2]
[380087314,1755533439976,-500.0,0.00010973,2]
[380087316,1755533439986,-500.0,0.00010973,2]
[380087317,1755533439995,-500.0,0.00010973,2]
[380087318,1755533440005,-500.0,0.00010973,2]
[380087321,1755533440016,-500.0,0.00010973,2]
[380087322,1755533440025,-500.0,0.00010973,2]
[380087323,1755533440035,-500.0,0.00010973,2]
[380087324,1755533440046,-500.0,0.00010973,2]
[380087325,1755533440057,-500.0,0.00010973,2]
[380087326,1755533440067,-502.07116757,0.00010973,2]
[380087327,1755533440077,-257.27088932,0.00010973,2]
[380087328,1755533440087,-524.44430221,0.00010973,2]
[380087329,1755533440097,-500.0,0.00010973,2]
[380087330,1755533440108,-161.91522282,0.00010973,2]
[380087331,1755533440117,-500.0,0.00010973,2]
[380087332,1755533440133,-163.50547101,0.00010973,2]
[380087333,1755533440143,-500.0,0.00010973,2]
[380087334,1755533440153,-5603.0,0.00010986,2]
[380087335,1755533440163,-7845.0,0.00010986,2]
[380087336,1755533440173,-1200.0,0.00010999,2]
[380087337,1755533440183,-1000.0,0.00010999,2]
[380087338,1755533440194,-811.46,0.00010999,2]
[380087339,1755533440204,-1233.16186344,0.00010999,2]
[380087340,1755533440214,-2000.0,0.00010999,2]
[380087341,1755533440224,-666.0,0.00010999,2]
[380087342,1755533440234,-1713.0,0.00010999,2]
[380087343,1755533440244,-4535.1884184,0.00011,2]
[380087344,1755533440254,-1000.0,0.00011,3]
[380087345,1755533440264,-7395864.50910473,0.00011,2]
[380087376,1755533440672,-116569.448,0.00011,2]
[380087378,1755533440684,-1150948.83330554,0.00011,2]
[380087448,1755533441664,-591.18857283,0.00011,2]
[380087449,1755533441675,-978.25,0.00011,2]
[380087450,1755533441687,-29475.0,0.00011,2]
[380087451,1755533441766,-3489.89,0.00011,2]
[380087488,1755533443931,-4631.9,0.00011,2]
[380087489,1755533443947,-2728.17061652,0.00011,2]
[380087490,1755533446271,-277.0,0.00010776,2]
[380087491,1755533446281,-108488.00000025,0.00011,2]
[380087492,1755533446340,-361.3720056,0.00011,2]
[380087493,1755533446498,-1414.00077649,0.00011,2]
[380087500,1755533508633,99.3862889,0.00010169,7]
[380087501,1755533508658,70.6137111,0.00010169,7]
[380087502,1755533624603,1500.0,9.427e-05,2]
[380087507,1755533775654,3069.41,9.443e-05,2]
[380087509,1755533939371,3970.46,9.461e-05,2]
[380087510,1755533941486,28917.64,9.461e-05,2]
[380087511,1755533949155,643.79,9.461e-05,2]
[380087512,1755533964580,424.04861714,0.00013263,10]
[380087515,1755533993458,182.37,9.444e-05,2]
[380087520,1755534068574,161.29,9.159e-05,2]
[380087522,1755534125292,1000.0,9.138e-05,2]
[380087523,1755534240336,-275.6687,9.78e-05,2]
[380087524,1755534240359,-300.0,9.844e-05,2]
[380087525,1755534240383,-500.0,9.845e-05,2]
[380087526,1755534240406,-500.0,9.845e-05,2]
[380087527,1755534240429,-500.0,9.845e-05,2]
[380087528,1755534240451,-300.0,9.845e-05,2]
[380087529,1755534240473,-500.0,9.845e-05,2]
[380087530,1755534240495,-500.0,9.845e-05,2]
[380087531,1755534240519,-500.0,9.845e-05,2]
[380087532,1755534240541,-500.0,9.845e-05,2]
[380087533,1755534240564,-500.0,9.845e-05,2]
[380087534,1755534240588,-500.0,9.845e-05,2]
[380087535,1755534240611,-500.0,9.845e-05,2]
[380087536,1755534240635,-500.0,9.845e-05,2]
[380087537,1755534240658,-500.0,9.845e-05,2]
[380087538,1755534240681,-500.0,9.845e-05,2]
[380087539,1755534240704,-500.0,9.845e-05,2]
[380087540,1755534240726,-500.0,9.845e-05,2]
[380087541,1755534240748,-500.0,9.845e-05,2]
[380087542,1755534240771,-500.0,9.845e-05,2]
[380087543,1755534240795,-500.0,9.845e-05,2]
[380087544,1755534240817,-500.0,9.845e-05,2]
[380087545,1755534240839,-500.0,9.845e-05,2]
[380087546,1755534240861,-500.0,9.845e-05,2]
[380087547,1755534240884,-500.0,9.845e-05,2]
[380087548,1755534240906,-500.0,9.845e-05,2]
[380087549,1755534240929,-500.0,9.845e-05,2]
[380087550,1755534240952,-500.0,9.845e-05,2]
[380087551,1755534240975,-245.30887192,9.845e-05,2]
[380087552,1755534241001,-500.0,9.845e-05,2]
[380087553,1755534241029,-500.0,9.845e-05,2]
[380087554,1755534241053,-500.0,9.845e-05,2]
[380087555,1755534241076,-500.0,9.845e-05,2]
[380087556,1755534241100,-500.0,9.845e-05,2]
[380087557,1755534241124,-500.0,9.845e-05,2]
[380087558,1755534241148,-500.0,9.845e-05,2]
[380087559,1755534241176,-500.0,9.845e-05,2]
[380087560,1755534241201,-500.0,9.845e-05,2]
[380087561,1755534241225,-500.0,9.845e-05,2]
[380087562,1755534241248,-500.0,9.845e-05,2]
[380087563,1755534241275,-500.0,9.845e-05,2]
[380087564,1755534241299,-500.0,9.845e-05,2]
[380087565,1755534241323,-500.0,9.845e-05,2]
[380087566,1755534241348,-500.0,9.845e-05,2]
[380087567,1755534241371,-500.0,9.845e-05,2]
[380087568,1755534241393,-500.0,9.845e-05,2]
[380087569,1755534241416,-500.0,9.845e-05,2]
[380087570,1755534241440,-500.0,9.845e-05,2]
[380087571,1755534241464,-250.0,9.845e-05,2]
[380087572,1755534241488,-234.67661382,9.846e-05,2]
[380087573,1755534241512,-150.0,9.846e-05,2]
[380087574,1755534241534,-334.0,9.846e-05,2]
[380087575,1755534241555,-250.0,9.847e-05,2]
[380087576,1755534241577,-280.0,9.848e-05,2]
[380087577,1755534241995,-1200.0,9.848e-05,2]
[380087578,1755534242040,-2166.31,9.854e-05,2]
[380087579,1755534242064,-2166.31,9.859e-05,2]
[380087580,1755534242088,-2166.31,9.865e-05,2]
[380087581,1755534242112,-2166.31,9.87e-05,2]
[380087582,1755534242139,-1426.97665868,9.874e-05,2]
[380087583,1755534242165,-2166.31,9.875e-05,2]
[380087584,1755534242188,-150.99,9.875e-05,2]
[380087585,1755534242210,-999.99,9.875e-05,2]
[380087586,1755534242235,-38439.85,9.875e-05,2]
[380087587,1755534242259,-2166.31,9.88e-05,2]
[380087588,1755534242281,-2593.12,9.88e-05,2]
[380087589,1755534242303,-499.99,9.88e-05,2]
[380087590,1755534242325,-29999.99,9.88e-05,2]
[380087591,1755534242348,-13727.11,9.88e-05,2]
[380087592,1755534242371,-1686.51,9.88e-05,2]
[380087593,1755534242393,-3664.47,9.88e-05,2]
[380087594,1755534242417,-1432.04,9.88e-05,2]
[380087595,1755534242442,-2166.31,9.885e-05,2]
[380087596,1755534242464,-2166.31,9.89e-05,2]
[380087597,1755534247693,1498.845,9.78e-05,2]
[380087598,1755534271779,164.27362967,9.895e-05,2]
[380087599,1755534274885,500.0,9.895e-05,2]
[380087600,1755534274976,500.0,9.895e-05,2]
[380087601,1755534275052,500.0,9.895e-05,2]
[380087602,1755534275140,500.0,9.895e-05,2]
[380087603,1755534275195,529.53088719,9.895e-05,2]
[380087604,1755534275280,500.0,9.895e-05,2]
[380087605,1755534276213,200.0,9.147e-05,2]
[380087606,1755534284001,188.9562541,9.873e-05,2]
[380087608,1755534343998,250.0,9.494e-05,2]
[380087614,1755534378766,190.05,9.695e-05,2]
[380087615,1755534403624,-2166.31,9.896e-05,2]
[380087616,1755534403649,-2166.31,9.901e-05,2]
[380087617,1755534403674,-2166.31,9.906e-05,2]
[380087618,1755534403698,-1200.0,9.91e-05,2]
[380087619,1755534403724,-2166.31,9.911e-05,2]
[380087620,1755534403749,-2166.31,9.916e-05,2]
[380087621,1755534403775,-2166.31,9.922e-05,2]
[380087622,1755534403800,-2166.31,9.927e-05,2]
[380087623,1755534403826,-2166.31,9.932e-05,2]
[380087624,1755534403850,-2166.31,9.937e-05,2]
[380087625,1755534403874,-2166.31,9.942e-05,2]
[380087626,1755534403898,-2166.31,9.947e-05,2]
[380087627,1755534403924,-2166.31,9.953e-05,2]
[380087628,1755534403948,-245.74346372,9.962e-05,2]
[380087629,1755534403972,-150.0,9.962e-05,2]
[380087630,1755534403997,-189.0592457,9.962e-05,2]
[380087631,1755534404022,-150.0,9.962e-05,2]
[380087632,1755534404048,-150.0,9.962e-05,2]
[380087633,1755534404073,-150.0,9.962e-05,2]
[380087634,1755534404097,-200.0,0.0001,2]
[380087635,1755534404123,-500.0,0.0001,2]
[380087636,1755534404149,-500.0,0.0001,2]
[380087637,1755534404174,-500.0,0.0001,2]
[380087638,1755534404198,-500.0,0.0001,2]
[380087639,1755534404222,-500.0,0.0001,2]
[380087640,1755534404246,-500.0,0.0001,2]
[380087641,1755534404271,-500.0,0.0001,2]
[380087642,1755534404298,-500.0,0.0001,2]
[380087643,1755534404325,-500.0,0.0001,2]
[380087644,1755534404364,-151.0,0.0001,2]
[380087645,1755534404389,-500.0,0.0001,2]
[380087646,1755534404414,-151.0,0.0001,2]
[380087647,1755534404757,-500.0,0.0001,2]